[Event "Czech Open-Rapid 2022"]
[Site "Pardubice"]
[Date "2022.07.21"]
[Round "7.12"]
[White "Blatny, Pavel"]
[Black "Mojzis, Jaroslav"]
[Result "1-0"]
[ECO "A01"]
[WhiteElo "2325"]
[BlackElo "2108"]
[Annotator "TA"]
[PlyCount "81"]
[EventDate "2022.07.20"]
[EventType "swiss"]
[EventCountry "CZE"]
[SourceTitle "playchess.com"]
[Source "ChessBase"]
[SourceQuality "1"]
[TimeControl "1200+10"]

{[%evp 10,81,9,0,10,2,10,-16,-10,-27,-18,-16,0,-12,47,38,30,35,33,13,7,0,0,0,0,8,5,0,0,-32,-15,-31,-8,-7,18,0,56,-13,169,169,169,163,168,164,169,162,170,163,158,160,158,138,133,112,123,142,147,155,232,229,220,138,154,146,286,188,1302,1302,29981,29982,29994,29995,29996,29997]} 1. b3 {[%emt 0:00:03]} e6 {[%emt 0:00:20]} 2. Bb2 {[%emt 0:00:02]} Nf6 {[%emt 0:00:02]} 3. e3 {[%emt 0:00:02]} d5 {[%emt 0:00:03]} 4. f4 {[%emt 0:00:03]} c5 {[%emt 0:00:08]} 5. Nf3 {[%emt 0:00:02]} Nc6 {[%emt 0:00:02]} 6. Be2 {[%emt 0:00:10]} b6 {[%emt 0:00:24] A03: Bird's Opening with 1...d5.} 7. Ne5 {[%emt 0:00:20]} Bb7 {[%emt 0:00:39] [#]} 8. Nxc6 $146 {[%emt 0:00:47]} (8. Bb5 {is interesting.} Rc8 9. d3 Be7 10. O-O) ({Predecessor:} 8. O-O Qc7 9. Qe1 O-O-O 10. d4 Ne4 11. a4 cxd4 12. Nxc6 Qxc6 13. Bxd4 Qxc2 14. a5 {1-0 (44) Sipila,V (2474)-Lucaci,M (2161) Vienna 2013}) 8... Bxc6 {[%emt 0:00:03] The position is equal.} 9. Bf3 {[%emt 0:00:02]} Rc8 {[%emt 0:00:31]} 10. O-O {[%emt 0:00:04]} Bd6 {[%emt 0:00:52]} 11. c4 {[%emt 0:01:28]} dxc4 {[%emt 0:00:30]} ({Better is} 11... O-O $11) 12. Bxc6+ $14 {[%emt 0:00:18]} Rxc6 {[%emt 0:00:04]} 13. bxc4 {[%emt 0:00:02]} O-O {[%emt 0:03:19]} 14. Qf3 {[%emt 0:00:25]} Rc7 {[%emt 0:00:44]} 15. Nc3 {[%emt 0:00:02]} Rd7 {[%emt 0:00:34]} 16. Rad1 {[%emt 0:00:01]} Be7 {[%emt 0:05:04]} 17. Qe2 {[%emt 0:00:45]} Ne8 {[%emt 0:04:00]} 18. e4 {[%emt 0:00:36]} Nc7 {[%emt 0:00:56]} 19. e5 {[%emt 0:00:13]} f5 {[%emt 0:00:32] Against Ne4} 20. Rf3 {[%emt 0:01:31]} a6 {[%emt 0:00:08][%cal Ob6b5]} 21. a4 {[%emt 0:00:05]} Rd4 {[%emt 0:00:50]} 22. d3 {[%emt 0:00:48]} Qd7 {[%emt 0:00:23]} (22... b5 $11) 23. Qc2 {[%emt 0:00:11]} (23. Nb1 $14) 23... Rd8 $2 {[%emt 0:00:07] [#]} (23... Qc6 $11 {and Black is okay.}) 24. Ne2 $18 {[%emt 0:00:03]} Re4 {[%emt 0:01:03][%cal Oe4e2]} 25. Re1 {[%emt 0:00:36]} Rxe2 {[%emt 0:00:21]} 26. Rxe2 {[%emt 0:00:01]} ({Resist} 26. Qxe2 Qxa4 27. Bc3 Qb3 $16) 26... b5 {[%emt 0:00:03]} 27. axb5 {[%emt 0:00:03]} axb5 {[%emt 0:00:01]} 28. h3 {[%emt 0:00:21]} b4 {[%emt 0:00:17]} 29. Kh2 {[%emt 0:00:07]} Na6 {[%emt 0:00:04]} 30. Qb3 {[%emt 0:00:47]} Nb8 {[%emt 0:00:04]} 31. Re1 {[%emt 0:00:10][%cal Be2e1,Be1a1,Ba1a6][%mdl 32]} Nc6 {[%emt 0:00:02]} 32. Ra1 {[%emt 0:00:16]} Kf7 {[%emt 0:00:17]} 33. Ra6 {[%emt 0:00:29]} g5 {[%emt 0:00:18]} (33... Nb8 $16 {is a better defense.} 34. Ra8 Nc6 35. Rxd8 Qxd8) 34. Qa4 {[%emt 0:00:22]} Rc8 {[%emt 0:01:18]} 35. Bc1 {[%emt 0:00:53]} gxf4 {[%emt 0:00:08]} 36. Bxf4 {[%emt 0:00:07]} Qc7 {[%emt 0:00:38]} (36... h5 $16 {was worth a try.} 37. Rf2 h4) 37. Re3 {[%emt 0:00:10] [#] Threatens to win with Qd1.} Nd4 $2 {[%emt 0:00:09]} (37... Qb7 38. Qd1 Ke8 39. Qh5+ Kd8) 38. Ra7 {[%emt 0:00:07]} Qc6 {[%emt 0:00:20]} 39. Qd1 {[%emt 0:00:17] White mates.} Rc7 {[%emt 0:00:51]} 40. Qh5+ {[%emt 0:00:06]} Kg8 {[%emt 0:00:05]} 41. Rg3+ {[%emt 0:00:05] Weighted Error Value: White=0.15 (very precise) /Black=0.46} 1-0

[Event "Czech Open-Rapid 2022"]
[Site "Pardubice"]
[Date "2022.07.21"]
[Round "7.13"]
[White "Mladek, Richard"]
[Black "Jun, Rudolf"]
[Result "1-0"]
[ECO "E43"]
[WhiteElo "2330"]
[BlackElo "2134"]
[Annotator "TA"]
[PlyCount "103"]
[EventDate "2022.07.20"]
[EventType "swiss"]
[EventCountry "CZE"]
[SourceTitle "playchess.com"]
[Source "ChessBase"]
[SourceQuality "1"]
[TimeControl "1200+10"]

{[%evp 12,103,10,0,17,17,27,26,72,74,71,72,81,76,79,81,83,77,92,74,73,70,86,72,87,79,92,100,133,121,150,97,143,138,147,138,139,135,125,127,229,197,189,183,187,182,303,291,360,384,674,677,672,672,662,640,644,606,619,626,625,620,629,619,835,873,860,850,934,639,960,934,1022,1016,1641,975,1533,1053,1021,1025,1230,1179,1338,989,2180,1358,29988,29989,29989,29990,29991,29992,29992,29993]} 1. d4 {[%emt 0:00:01]} Nf6 {[%emt 0:00:03]} 2. c4 {[%emt 0:00:01]} e6 {[%emt 0:00:01]} 3. Nc3 {[%emt 0:00:01]} Bb4 {[%emt 0:00:08]} 4. e3 {[%emt 0:00:02]} b6 {[%emt 0:00:21]} 5. Bd2 {[%emt 0:00:09]} Bb7 {[%emt 0:00:09]} 6. Nf3 {[%emt 0:00:02]} O-O {[%emt 0:00:50]} 7. Bd3 {[%emt 0:00:01]} Re8 {[%emt 0:01:42] E21: Nimzo-Indian: 4 Nf3.} 8. O-O {[%emt 0:00:12]} a5 {[%emt 0:00:10]} 9. Rc1 {[%emt 0:00:07] [#]} Bf8 $146 {[%emt 0:00:13]} (9... d6 $11) ({Predecessor:} 9... d6 10. a3 Bxc3 11. Bxc3 Ne4 12. Be1 a4 13. Kh1 f5 14. Ng1 Qg5 15. f3 Nf6 {1-0 (66) Bluebaum,M (2670)-Kovalenko,I (2643) Chess.com INT 2020}) 10. e4 $16 {[%emt 0:01:12] [#] e5 is the strong threat.} d6 {[%emt 0:00:03]} 11. a3 {[%emt 0:00:57]} Nc6 {[%emt 0:01:32]} 12. Re1 {[%emt 0:01:36]} e5 {[%emt 0:00:18]} 13. d5 {[%emt 0:00:16]} Nb8 {[%emt 0:01:11]} 14. b4 {[%emt 0:00:26]} Nbd7 {[%emt 0:00:40]} 15. Na4 {[%emt 0:03:01]} axb4 {[%emt 0:01:42]} 16. axb4 {[%emt 0:00:01]} g6 {[%emt 0:00:28]} 17. Qb3 {[%emt 0:00:41]} Bc8 {[%emt 0:01:19]} 18. Ra1 {[%emt 0:00:12] White is much more active.} Nh5 {[%emt 0:00:10]} 19. Nc3 {[%emt 0:00:57]} Rxa1 {[%emt 0:00:47]} 20. Rxa1 {[%emt 0:00:01]} Nf4 {[%emt 0:00:24]} 21. Bc2 {[%emt 0:01:43]} ({White should play} 21. Bf1) 21... Bb7 {[%emt 0:02:22]} ({Black should try} 21... Nf6) 22. Ra7 {[%emt 0:00:53]} Qb8 {[%emt 0:00:02]} 23. Qa4 $36 {[%emt 0:00:57][%cal Oa4d7][%mdl 2048] White is on the roll.} Rd8 {[%emt 0:00:59]} 24. g3 {[%emt 0:00:14]} Nh5 {[%emt 0:00:11]} 25. Bg5 {[%emt 0:00:10]} f6 {[%emt 0:00:09]} (25... Nhf6 $16 {is a better defense.} 26. Ne1 Rc8) 26. Be3 $18 {[%emt 0:00:06]} Ng7 {[%emt 0:02:13]} 27. Qa2 {[%emt 0:01:23]} Kh8 {[%emt 0:00:34]} 28. Ra3 {[%emt 0:00:21]} Be7 {[%emt 0:00:22]} (28... Qc8 {was called for.} 29. Ra7 Qb8) 29. Ba4 {[%emt 0:00:12]} Nf8 {[%emt 0:02:17]} 30. Bc6 {[%emt 0:00:09] [#] Hoping for Ra7.} h5 $2 {[%emt 0:01:18]} (30... Qc8 31. Ra7 Bxc6) 31. Ra7 {[%emt 0:00:50][%cal Ba3a7,Ba7b7,Bb7b6][%mdl 32]} Bxc6 {[%emt 0:00:03]} 32. dxc6 {[%emt 0:00:01]} Rc8 {[%emt 0:00:42]} 33. Nd5 {[%emt 0:00:24]} Bd8 {[%emt 0:00:25]} 34. Rb7 {[%emt 0:01:36]} Qa8 {[%emt 0:00:03]} 35. Qxa8 {[%emt 0:00:28]} Rxa8 {[%emt 0:00:02]} 36. Nxc7 {[%emt 0:00:07]} Rc8 {[%emt 0:00:31]} 37. Bxb6 {[%emt 0:00:39]} Nfe6 {[%emt 0:00:06]} 38. Nd5 {[%emt 0:01:45]} Bxb6 {[%emt 0:00:04]} 39. Rxb6 {[%emt 0:00:04]} Ne8 {[%emt 0:00:09]} 40. Ne1 {[%emt 0:00:56]} Nd4 {[%emt 0:00:49]} 41. b5 {[%emt 0:00:08]} Kg7 {[%emt 0:01:05]} 42. Rb7+ {[%emt 0:00:02]} Kh6 {[%emt 0:00:06]} 43. Kg2 {[%emt 0:00:18] Strongly threatening Ne7.} Ne6 {[%emt 0:00:20]} 44. Nb6 {[%emt 0:00:21]} Rd8 {[%emt 0:00:12]} 45. Nd3 {[%emt 0:00:01]} N8c7 {[%emt 0:00:13]} 46. Nd5 {[%emt 0:00:04]} Ne8 {[%emt 0:00:08]} 47. c7 {[%emt 0:00:10]} Rc8 {[%emt 0:00:13]} 48. b6 {[%emt 0:00:05][%cal Bb5b6,Bb6b7][%mdl 32] And now Rb8 would win.} Nc5 {[%emt 0:00:02]} 49. Nxc5 {[%emt 0:00:03] White mates.} dxc5 {[%emt 0:00:01]} 50. Rb8 {[%emt 0:00:06]} Nd6 {[%emt 0:00:01]} 51. Rxc8 {[%emt 0:00:04]} Nxc8 {[%emt 0:00:02]} 52. b7 {[%emt 0:00:01] Black did not feel at home in the position after the opening.  Weighted Error Value: White=0.17 (very precise) /Black=0.31} 1-0

[Event "Czech Open-Rapid 2022"]
[Site "Pardubice"]
[Date "2022.07.21"]
[Round "7.14"]
[White "Mierins, Emils Janis"]
[Black "Seger, Ruediger"]
[Result "0-1"]
[ECO "B13"]
[WhiteElo "2042"]
[BlackElo "2299"]
[Annotator "TA"]
[PlyCount "118"]
[EventDate "2022.07.20"]
[EventType "swiss"]
[EventCountry "CZE"]
[SourceTitle "playchess.com"]
[Source "ChessBase"]
[SourceQuality "1"]
[TimeControl "1200+10"]

{[%evp 10,118,29,22,40,26,33,27,25,37,45,7,2,0,0,3,24,0,0,0,0,0,0,0,0,4,9,0,0,-21,-20,-81,-99,-166,-195,-210,-207,-224,-217,-209,-227,-229,-230,-395,-275,-271,-228,-335,-235,-325,-342,-335,-333,-329,-321,-470,-467,-504,-491,-582,-546,-666,-356,-1550,-314,-382,-282,-356,-346,-373,-375,-472,-465,-547,-377,-682,-531,-591,-535,-654,-591,-1090,-1058,-1051,-1042,-1287,-1106,-5604,-5600,-3973,-3552,-29967,-29962,-29986,-29987,-29987,-29987,-29987,-29988,-29987,-916,-29975,-900,-29987,-29981,-29988,-29989,-29989,-29990,-29989,-29990]} 1. e4 c6 {[%emt 0:00:01]} 2. d4 {[%emt 0:00:04]} d5 {[%emt 0:00:01]} 3. exd5 {[%emt 0:00:02]} cxd5 {[%emt 0:00:01]} 4. Bd3 {[%emt 0:00:01]} Nc6 {[%emt 0:00:01]} 5. c3 {[%emt 0:00:01]} Qc7 {[%emt 0:00:02]} 6. h3 {[%emt 0:00:02]} e5 {[%emt 0:00:11] B13: Caro-Kann: Exchange Variation and Panov-Botvinnik Attack.} 7. dxe5 {[%emt 0:00:04]} Nxe5 {[%emt 0:00:02]} 8. Nf3 {[%emt 0:00:34]} Nxd3+ {[%emt 0:00:06] White has an edge.} 9. Qxd3 {[%emt 0:00:03]} Bd6 {[%emt 0:00:01]} 10. O-O {[%emt 0:00:37]} (10. Bg5 Ne7 $11) 10... Ne7 {[%emt 0:00:02]} 11. Re1 {[%emt 0:00:04]} O-O {[%emt 0:00:05] [#]} 12. Nd4 $146 {[%emt 0:00:04]} ({Predecessor:} 12. Bg5 Bf5 13. Qd1 Rfe8 14. Nd4 Bd7 15. Nd2 Ng6 16. N2f3 Re4 17. Qb3 h6 18. Be3 {1-0 (57) Aronian,L (2772)-Fedoseev,V (2704) Warsaw 2021}) 12... a6 {[%emt 0:00:16] Prevents Nb5.} 13. a4 {[%emt 0:00:51]} Bd7 {[%emt 0:00:12]} 14. Nd2 {[%emt 0:00:03][%cal Bb1d2,Bd2f3,Bf3g5][%mdl 32]} Rfe8 {[%emt 0:00:10]} 15. N2f3 {[%emt 0:00:17]} Nc6 {[%emt 0:01:12][%cal Be7c6,Bc6a5,Ba5c4,Bc4b6,Bb6a4][%mdl 32]} 16. Bd2 {[%emt 0:00:44]} Na5 {[%emt 0:01:02]} 17. Ng5 {[%emt 0:00:10] Pair of Knights!} g6 $1 {[%emt 0:00:09]} 18. Qf3 {[%emt 0:00:02]} Bc6 {[%emt 0:00:34] aiming for ...Nc4.} 19. Nxc6 {[%emt 0:11:04]} bxc6 {[%emt 0:00:07]} 20. Be3 {[%emt 0:00:21]} ({Don't play} 20. Qf6 Nb3 21. Rxe8+ Rxe8 $17) (20. Qd3 $11 {remains equal.}) 20... Nc4 $17 {[%emt 0:00:55] White is now going downhill.} 21. Bd4 {[%emt 0:00:25] [#]} (21. h4 $17 {might work better.}) 21... c5 $1 $19 {[%emt 0:02:05]} 22. Bf6 {[%emt 0:00:18] [#]} h6 $1 {[%emt 0:00:27]} 23. Qxd5 {[%emt 0:01:20][%cal Oe1e7] Strongly threatening Re7!} Nb6 {[%emt 0:00:10] The board is on fire.} 24. Qf3 {[%emt 0:01:21] Threatens to win with Ne4.} hxg5 {[%emt 0:00:11]} 25. Bxg5 {[%emt 0:00:05] [#]} Nxa4 $1 {[%emt 0:07:22][%mdl 512]} 26. Qg4 $2 {[%emt 0:00:56]} (26. h4 {was worth a try.}) (26. b3 Nb6) 26... Nb6 {[%emt 0:00:43]} 27. h4 {[%emt 0:00:34]} Qd7 {[%emt 0:01:47]} 28. Qf3 {[%emt 0:00:02]} (28. Rxe8+ $142 Qxe8 29. g3) 28... Rxe1+ {[%emt 0:00:18]} 29. Rxe1 {[%emt 0:00:02]} Re8 {[%emt 0:00:11][%cal Re8e1]} 30. Rd1 {[%emt 0:00:45]} Qe6 {[%emt 0:00:07][%cal Oe6e1] ( -> ...Qe1+!)} 31. g3 {[%emt 0:00:03]} Bf8 {[%emt 0:01:03]} 32. Ra1 {[%emt 0:00:13]} (32. Kg2 {was called for.}) 32... Nc4 {[%emt 0:00:18]} 33. b3 {[%emt 0:00:17]} Ne5 {[%emt 0:00:16][%csl LRb3,LRf3]} 34. Qb7 {[%emt 0:00:01]} Qf5 {[%emt 0:00:18]} 35. Kg2 {[%emt 0:00:38]} Ng4 {[%emt 0:00:42]} 36. Ra2 {[%emt 0:01:16]} (36. Qf3 Qc8 37. Bf4) 36... Qd3 $2 {[%emt 0:01:41]} (36... Re1 37. Rd2 Qb1) 37. Rd2 {[%emt 0:00:32]} Qb5 {[%emt 0:00:02]} 38. Qd5 {[%emt 0:00:40]} Ne5 {[%emt 0:00:14] Inhibits Rd3.} ({Don't go for} 38... Re1 $2 39. Qc4 $19) 39. Bf4 {[%emt 0:00:28]} Bg7 {[%emt 0:00:22]} 40. Bxe5 {[%emt 0:00:21]} Rxe5 {[%emt 0:00:06]} ({Wrong is} 40... Bxe5 $2 41. c4 Qxb3 42. Qxc5 $19) 41. Qd8+ {[%emt 0:00:32]} Re8 {[%emt 0:00:02]} 42. Qg5 {[%emt 0:00:24]} (42. c4 Qb8 43. Qd7) 42... Qxb3 {[%emt 0:00:37]} 43. h5 {[%emt 0:00:14]} gxh5 {[%emt 0:00:05]} 44. Rd5 {[%emt 0:00:25]} c4 {[%emt 0:00:36][%cal Bc5c4,Bc4c3,Bc3c2][%mdl 32]} 45. Qxh5 {[%emt 0:00:11]} Qxc3 {[%emt 0:00:09] And now ...Qf6 would win.} 46. Rf5 {[%emt 0:00:06]} Rf8 {[%emt 0:00:19]} 47. Qg4 {[%emt 0:00:18]} Qd4 {[%emt 0:00:16]} 48. Rf4 {[%emt 0:00:11]} Qd5+ {[%emt 0:00:01]} 49. Kh2 {[%emt 0:00:03]} c3 {[%emt 0:00:15] White must now prevent ...Re8.} 50. Qe2 {[%emt 0:00:26]} Qd2 {[%emt 0:00:26]} 51. Qe4 {[%emt 0:00:09]} c2 {[%emt 0:00:40]} 52. Rh4 {[%emt 0:00:01]} Qxf2+ {[%emt 0:00:06]} 53. Kh3 {[%emt 0:00:00]} Qf1+ {[%emt 0:00:52]} 54. Kh2 {[%emt 0:00:01]} Rd8 {[%emt 0:00:13]} (54... Rc8 $142 55. Qh7+ Kf8 56. Qh8+ Bxh8 57. Rxh8+ Kg7 58. Rxc8 Qf2+ 59. Kh1 a5 60. g4 a4 61. Rc7 a3 62. Rc5 Qxc5 63. Kh2 c1=Q 64. Kh3 Qh1+ 65. Kg3 Qe3#) 55. Qxc2 {[%emt 0:00:04]} Qd1 {[%emt 0:00:15]} (55... Qe1 $142 56. Kh3 Qh1+ 57. Qh2 Rd1 58. Rf4 Qd5 59. Kh4 Rh1 60. Qh3 Qd8+ 61. Kg4 Qd7+ 62. Kf3 Qxh3 63. Re4 Rf1+ 64. Ke3 Qxg3+ 65. Kd2 Rf2+ 66. Re2 Qc3+ 67. Kd1 Rf1+ 68. Re1 Rxe1#) 56. Qh7+ {[%emt 0:00:06]} Kf8 {[%emt 0:00:00] Black mates.} 57. Qe4 {[%emt 0:00:21]} Rd2+ {[%emt 0:00:15]} 58. Kh3 {[%emt 0:00:00]} Qf1+ {[%emt 0:00:04]} 59. Kg4 {[%emt 0:00:12]} Rd4 {[%emt 0:00:03] Weighted Error Value: White=0.61/Black=0.46} 0-1